bitfinex-derivatives/quotes_BNBF0:USTF0_20250413
["timestamp","ask_amount","ask_price","bid_price","bid_amount"]
[1744510913243,0.3093593,594.78,594.05,3.446]
[1744510913441,0.3093593,594.79,594.05,3.446]
[1744510913645,0.33624747,594.8,594.05,3.446]
[1744510913947,0.29288738,594.77,594.05,3.446]
[1744510914147,0.30936579,594.76,594.05,3.446]
[1744510915642,0.30936579,594.79,594.05,3.446]
[1744510915844,0.29289108,594.75,594.05,3.446]
[1744510916050,0.30936579,594.74,594.05,3.446]
[1744510918744,0.30936579,594.79,594.05,3.446]
[1744510918944,0.30936579,594.78,594.05,3.446]
[1744510919148,0.30936579,594.79,594.05,3.446]
[1744510919349,0.30936579,594.78,594.05,3.446]
[1744510919550,0.30936579,594.79,594.05,3.446]
[1744510919744,0.60225317,594.78,594.05,3.446]
[1744510919945,0.30936579,594.77,594.05,3.446]
[1744510924652,0.33624747,594.8,594.05,3.446]
[1744510924854,0.30937352,594.79,594.05,3.446]
[1744510925354,0.33625878,594.78,594.05,3.446]
[1744510925552,0.30937352,594.77,594.05,3.446]
[1744510925760,0.33627009,594.76,594.05,3.446]
[1744510926059,0.30937352,594.75,594.05,3.446]
[1744510926659,0.3362814,594.74,594.05,3.446]
[1744510926959,0.30937352,594.73,594.05,3.446]
[1744510927158,0.3362927,594.72,594.05,3.446]
[1744510927359,0.30937352,594.71,594.05,3.446]
[1744510928059,0.64567188,594.71,594.05,3.446]
[1744510928254,0.30937352,594.7,594.05,3.446]
[1744510928755,0.29292066,594.69,594.05,3.446]
[1744510929060,0.30937352,594.68,594.05,3.446]
[1744510930757,0.30937352,594.67,594.05,3.446]
[1744510930961,0.29290834,594.67,594.05,3.446]
[1744510931160,0.30937352,594.66,594.05,3.446]
[1744510933863,0.60228679,594.65,594.05,3.446]
[1744510934065,0.30937352,594.64,594.05,3.446]
[1744510936864,0.30937352,594.63,594.05,3.446]
[1744510937063,0.30937352,594.7,594.05,3.446]
[1744510937265,0.30937352,594.69,594.05,3.446]
[1744510937565,0.30937352,594.68,594.05,3.446]
[1744510937767,0.29291327,594.68,594.05,3.446]
[1744510937960,0.30938092,594.67,594.05,3.446]
[1744510939369,0.29291327,594.68,594.05,3.446]
[1744510939570,0.30939571,594.67,594.05,3.446]
[1744510939763,0.30939571,594.7,594.05,3.446]
[1744510940867,0.29291327,594.69,594.05,3.446]
[1744510941068,0.30939571,594.68,594.05,3.446]
[1744510941265,0.29291327,594.69,594.05,3.446]
[1744510941461,0.309397,594.68,594.05,3.446]
[1744510942762,0.309397,594.7,594.05,3.446]
[1744510942960,0.309397,594.69,594.05,3.446]
[1744510943268,0.309397,594.7,594.05,3.446]
[1744510943566,0.309397,594.69,594.05,3.446]
[1744510943766,0.29291327,594.69,594.05,3.446]
[1744510943967,0.309397,594.68,594.05,3.446]
[1744510944267,0.29291327,594.69,594.05,3.446]
[1744510944469,0.30939649,594.68,594.05,3.446]
[1744510945665,0.30939649,594.7,594.05,3.446]
[1744510945971,0.30939649,594.69,594.05,3.446]
[1744510946171,0.30939649,594.68,594.05,3.446]
[1744510946471,0.30939649,594.67,594.05,3.446]
[1744510946771,0.30939649,594.66,594.05,3.446]
[1744510948670,0.30939649,594.7,594.05,3.446]
[1744510948870,0.30939649,594.69,594.05,3.446]
[1744510949071,0.30939649,594.7,594.05,3.446]
[1744510949772,0.29291327,594.69,594.05,3.446]
[1744510949974,0.30939649,594.68,594.05,3.446]
[1744510954772,0.30939649,594.7,594.05,3.446]
[1744510954977,0.30939649,594.69,594.05,3.446]
[1744510955174,0.30939649,594.7,594.05,3.446]
[1744510955779,0.2929108,594.69,594.05,3.446]
[1744510956079,0.30939649,594.68,594.05,3.446]
[1744510957579,1.27338355,594.69,594.05,3.446]
[1744510957778,0.30939248,594.68,594.05,3.446]
[1744510958780,0.29291327,594.67,594.05,3.446]
[1744510958982,0.30939248,594.66,594.05,3.446]
[1744510960880,0.30939248,594.65,594.05,3.446]
[1744510961080,0.30939248,594.7,594.05,3.446]
[1744510961283,0.30939248,594.69,594.05,3.446]
[1744510961577,0.30939248,594.68,594.05,3.446]
[1744510961781,0.30939248,594.7,594.05,3.446]
[1744510961987,0.2929108,594.68,594.05,3.446]
[1744510962180,0.30939248,594.67,594.05,3.446]
[1744510963885,0.2929145,594.66,594.05,3.446]
[1744510964278,0.30939248,594.65,594.05,3.446]
[1744510966686,0.30939248,594.7,594.05,3.446]
[1744510966886,1.27338355,594.65,594.05,3.446]
[1744510967081,0.30939248,594.64,594.05,3.446]
[1744510967882,0.2929182,594.63,594.05,3.446]
[1744510968285,0.30939248,594.62,594.05,3.446]
[1744510969186,1.56630175,594.63,594.05,3.446]
[1744510969388,0.30939665,594.62,594.05,3.446]
[1744510970784,0.29292066,594.61,594.05,3.446]
[1744510970989,0.30939665,594.6,594.05,3.446]
[1744510974291,0.30938597,594.59,594.05,3.446]
[1744510974492,0.30938597,594.6,594.05,3.446]
[1744510974793,0.30938597,594.59,594.05,3.446]
[1744510974993,0.30938597,594.6,594.05,3.446]
[1744510975293,0.30938568,594.59,594.05,3.446]
[1744510975490,0.30938568,594.6,594.05,3.446]
[1744510975896,0.60229812,594.59,594.05,3.446]
[1744510976196,0.30939225,594.58,594.05,3.446]
[1744510978798,0.29290834,594.57,594.05,3.446]
[1744510978998,0.30939225,594.56,594.05,3.446]
[1744510981704,0.30939225,594.61,594.05,3.446]
[1744510981996,0.29292806,594.55,594.05,3.446]
[1744510982198,0.30939225,594.54,594.05,3.446]
[1744510984704,0.30939225,594.58,594.05,3.446]
[1744510985204,0.30939225,594.62,594.05,3.446]
[1744510985405,0.30939225,594.57,594.05,3.446]
[1744510985604,0.30939225,594.56,594.05,3.446]
[1744510985805,0.29290834,594.61,594.05,3.446]
[1744510986105,0.30939225,594.6,594.05,3.446]
[1744510987805,0.30939225,594.62,594.05,3.446]
[1744510988008,0.30939225,594.61,594.05,3.446]
[1744510988203,0.30939225,594.66,594.05,3.446]
[1744510988401,0.30939225,594.65,594.05,3.446]
[1744510988602,0.30939225,594.66,594.05,3.446]
[1744510988804,0.29290094,594.64,594.05,3.446]
[1744510989005,0.30939225,594.63,594.05,3.446]
[1744510990308,0.29290094,594.64,594.05,3.446]
[1744510990503,0.30939071,594.63,594.05,3.446]
[1744510991006,0.30939071,594.65,594.05,3.446]
[1744510991804,0.29290217,594.64,594.05,3.446]
[1744510992208,0.3093877,594.63,594.05,3.446]
[1744510993610,1.60968191,594.71,594.05,3.446]
[1744510993805,0.30938534,594.7,594.05,3.446]
[1744510994810,0.29289601,594.69,594.05,3.446]
[1744510995008,0.30938534,594.68,594.05,3.446]
[1744510995311,0.29289601,594.69,594.05,3.446]
[1744510995515,0.30938769,594.68,594.05,3.446]
[1744510996709,0.30938769,594.7,594.05,3.446]
[1744510997816,0.29289601,594.69,594.05,3.446]
[1744510998014,0.30938769,594.68,594.05,3.446]
[1744510999909,0.30938769,594.7,594.05,3.446]
[1744511000814,0.2929108,594.69,594.05,3.446]
[1744511001014,0.30938769,594.68,594.05,3.446]
[1744511002810,0.30938769,594.7,594.05,3.446]
[1744511003012,0.30938769,594.69,594.05,3.446]
[1744511003211,0.30938769,594.7,594.05,3.446]
[1744511003410,0.30938769,594.68,594.05,3.446]
[1744511003609,0.30938769,594.67,594.05,3.446]
[1744511003814,0.30938769,594.66,594.05,3.446]
[1744511005216,0.3093942,594.65,594.05,3.446]
[1744511005414,0.3093942,594.66,594.05,3.446]
[1744511005617,0.3093942,594.64,594.05,3.446]
[1744511005818,0.3093942,594.63,594.05,3.446]
[1744511006013,0.3093942,594.62,594.05,3.446]
[1744511006218,0.3093942,594.64,594.05,3.446]
[1744511006419,0.3093942,594.63,594.05,3.446]
[1744511006616,0.3093942,594.64,594.05,3.446]
[1744511006814,0.3093942,594.63,594.05,3.446]
[1744511008414,1.27338355,594.64,594.05,3.446]
[1744511008619,0.30940049,594.63,594.05,3.446]
[1744511008915,0.60231992,594.63,594.05,3.446]
[1744511009120,0.30940049,594.62,594.05,3.446]
[1744511011724,0.30940049,594.64,594.05,3.446]
[1744511011918,0.29292066,594.61,594.05,3.446]
[1744511012123,0.30940049,594.6,594.05,3.446]
[1744511013321,0.29292066,594.61,594.05,3.446]
[1744511013525,0.30939602,594.6,594.05,3.446]
[1744511014823,0.30939602,594.63,594.05,3.446]
[1744511015024,0.30939602,594.62,594.05,3.446]
[1744511015223,0.30939602,594.61,594.05,3.446]
[1744511015424,0.30939602,594.63,594.05,3.446]
[1744511015828,0.29291943,594.62,594.05,3.446]
[1744511016029,0.30939602,594.61,594.05,3.446]
[1744511016630,0.29291943,594.62,594.05,3.446]
[1744511016830,0.30939167,594.61,594.05,3.446]
[1744511017929,0.30939167,594.6,594.05,3.446]
[1744511018129,0.30939167,594.62,594.05,3.446]
[1744511018825,0.29292066,594.61,594.05,3.446]
[1744511019030,0.30939167,594.6,594.05,3.446]
[1744511019229,1.27338355,594.59,594.05,3.446]
[1744511019429,0.30939167,594.58,594.05,3.446]
[1744511019831,1.27338355,594.59,594.05,3.446]
[1744511020026,0.30939383,594.58,594.05,3.446]
[1744511021833,0.29292559,594.57,594.05,3.446]
[1744511022033,0.30939383,594.56,594.05,3.446]
[1744511024027,0.30939383,594.55,594.05,3.446]
[1744511024232,0.30939383,594.63,594.05,3.446]
[1744511024533,0.30939383,594.62,594.05,3.446]
[1744511024730,0.29293669,594.62,594.05,3.446]
[1744511024934,0.3094433,594.61,594.05,3.446]
[1744511026231,0.29293669,594.62,594.05,3.446]
[1744511026435,0.30942715,594.61,594.05,3.446]
[1744511026834,0.30942715,594.6,594.05,3.446]
[1744511027034,0.30942715,594.59,594.05,3.446]
[1744511027233,0.30942715,594.58,594.05,3.446]
[1744511027437,0.30942715,594.7,594.05,3.446]
[1744511027632,0.30942715,594.69,594.05,3.446]
[1744511027834,0.2929108,594.57,594.05,3.446]
[1744511028034,0.30942715,594.56,594.05,3.446]
[1744511028234,0.30942715,594.55,594.05,3.446]
[1744511028437,0.30942715,594.54,594.05,3.446]
[1744511028737,0.30942715,594.53,594.05,3.446]
[1744511029032,0.29290587,594.53,594.05,3.446]
[1744511029238,0.30942715,594.52,594.05,3.446]
[1744511029837,0.30942715,594.51,594.05,3.446]
[1744511030137,0.30942715,594.7,594.05,3.446]
[1744511030337,0.29289601,594.55,594.05,3.446]
[1744511030537,0.30939133,594.54,594.05,3.446]
[1744511030938,0.30939133,594.7,594.05,3.446]
[1744511031239,1.27338355,594.99,594.05,3.446]
[1744511031538,0.29289601,594.69,594.05,3.446]
[1744511031736,0.30939173,594.68,594.05,3.446]
[1744511032738,0.30939173,594.7,594.05,3.446]
[1744511032936,0.29289847,594.67,594.05,3.446]
[1744511033139,0.30938876,594.66,594.05,3.446]
[1744511036035,0.29289847,594.67,594.05,3.446]
[1744511036242,0.3093481,594.66,594.05,3.446]
[1744511039342,0.29289847,594.67,594.05,3.446]
[1744511039642,0.30935022,594.66,594.05,3.446]
[1744511040744,0.29289847,594.67,594.05,3.446]
[1744511040943,0.30934961,594.66,594.05,3.446]
[1744511041343,0.29289847,594.67,594.05,3.446]
[1744511041545,0.30934969,594.66,594.05,3.446]
[1744511041843,0.30934969,594.65,594.05,3.446]
[1744511042044,0.30934969,594.7,594.05,3.446]
[1744511042244,1.27338355,595.17,594.05,3.446]
[1744511042843,0.30926162,594.7,594.05,3.446]
[1744511048642,0.30927462,594.69,594.05,3.446]
[1744511048842,0.30927462,594.7,594.05,3.446]
[1744511049047,0.30927462,594.69,594.05,3.446]
[1744511049349,0.29285164,594.73,594.05,3.446]
[1744511049645,0.30927268,594.7,594.05,3.446]
[1744511050148,0.29285164,594.73,594.05,3.446]
[1744511050348,0.30927294,594.7,594.05,3.446]
[1744511051854,0.29287382,594.69,594.05,3.446]
[1744511052053,0.30927294,594.68,594.05,3.446]
[1744511053954,0.60214923,594.67,594.05,3.446]
[1744511054251,0.30927294,594.66,594.05,3.446]
[1744511055056,0.29287629,594.67,594.05,3.446]
[1744511055257,0.30930125,594.66,594.05,3.446]
[1744511056958,0.30930125,594.65,594.05,3.446]
[1744511057258,0.30930125,594.64,594.05,3.446]
[1744511057458,0.30930125,594.7,594.05,3.446]
[1744511057758,0.30930125,594.69,594.05,3.446]
[1744511057958,0.29287382,594.64,594.05,3.446]
[1744511058162,0.30930125,594.63,594.05,3.446]
[1744511062758,0.30930125,594.62,594.05,3.446]
[1744511062958,0.30930125,594.7,594.05,3.446]
[1744511063162,0.30930125,594.69,594.05,3.446]
[1744511063358,0.30930125,594.7,594.05,3.446]
[1744511063563,0.30930125,594.69,594.05,3.446]
[1744511063765,0.30930125,594.7,594.05,3.446]
[1744511063965,0.29287382,594.69,594.05,3.446]
[1744511064166,0.30930125,594.68,594.05,3.446]
[1744511066568,0.29287382,594.69,594.05,3.446]
[1744511066868,0.30930216,594.68,594.05,3.446]
[1744511068865,0.30930216,594.67,594.05,3.446]
[1744511069067,0.30930216,594.7,594.05,3.446]
[1744511069268,0.30930216,594.69,594.05,3.446]
[1744511069468,0.30930216,594.7,594.05,3.446]
[1744511069664,0.30930216,594.69,594.05,3.446]
[1744511069868,1.27338355,595.08,594.05,3.446]
[1744511070065,0.29287382,594.69,594.05,3.446]
[1744511070264,0.30930192,594.68,594.05,3.446]
[1744511071570,1.27338355,594.96,594.05,3.446]
[1744511071771,0.30930004,594.7,594.05,3.446]
[1744511072871,0.29287382,594.69,594.05,3.446]
[1744511073171,0.30930004,594.68,594.05,3.446]
[1744511074769,0.30930004,594.7,594.05,3.446]
[1744511075873,0.29287382,594.69,594.05,3.446]
[1744511076069,0.30930004,594.68,594.05,3.446]
[1744511077774,0.30930004,594.7,594.05,3.446]
[1744511077974,0.29290587,594.67,594.05,3.446]
[1744511078171,0.30930004,594.66,594.05,3.446]
[1744511080869,0.30930004,594.65,594.05,3.446]
[1744511081068,0.30930004,594.7,594.05,3.446]
[1744511081268,0.30941006,594.69,594.05,3.446]
[1744511081469,0.33631532,594.68,594.05,3.446]
[1744511081671,0.30941006,594.67,594.05,3.446]
[1744511084877,0.29293176,594.66,594.05,3.446]
[1744511085078,0.30941006,594.65,594.05,3.446]
[1744511086079,0.29293176,594.66,594.05,3.446]
[1744511086378,0.30940645,594.65,594.05,3.446]
[1744511086879,0.29293916,594.64,594.05,3.446]
[1744511087079,0.30940645,594.63,594.05,3.446]
[1744511087780,0.29293916,594.64,594.05,3.446]
[1744511088078,0.30941991,594.63,594.05,3.446]
[1744511089879,0.30941991,594.65,594.05,3.446]
[1744511091080,0.29293669,594.64,594.05,3.446]
[1744511091475,0.30940876,594.63,594.05,3.446]
[1744511092886,0.60233312,594.62,594.05,3.446]
[1744511093088,0.30940876,594.61,594.05,3.446]
[1744511095785,0.30940876,594.65,594.05,3.446]
[1744511095982,0.30935524,594.64,594.05,3.446]
[1744511096180,0.30935524,594.65,594.05,3.446]
[1744511096383,0.30935524,594.64,594.05,3.446]
[1744511096583,0.30935524,594.65,594.05,3.446]
[1744511096786,0.29290217,594.63,594.05,3.446]
[1744511096981,0.30935524,594.62,594.05,3.446]
[1744511097379,0.29290217,594.63,594.05,3.446]
[1744511098590,0.33632664,594.66,594.05,3.446]
[1744511098792,0.30931541,594.65,594.05,3.446]
[1744511098991,0.29287999,594.64,594.05,3.446]
[1744511099793,0.30932211,594.63,594.05,3.446]
[1744511099989,0.29287999,594.64,594.05,3.446]
[1744511101394,0.30931216,594.63,594.05,3.446]
[1744511101795,0.29287999,594.64,594.05,3.446]
[1744511102096,0.30931216,594.63,594.05,3.446]
[1744511106699,0.29287999,594.64,594.05,3.446]
[1744511106899,0.30928298,594.63,594.05,3.446]
[1744511108001,0.30928298,594.62,594.05,3.446]
[1744511108200,0.30928298,594.69,594.05,3.446]
[1744511108396,0.30928398,594.68,594.05,3.446]
[1744511108601,0.30928398,594.69,594.05,3.446]
[1744511108802,0.30928398,594.68,594.05,3.446]
[1744511109002,0.30928398,594.69,594.05,3.446]
[1744511109205,0.30928398,594.68,594.05,3.446]
[1744511109398,0.30928398,594.69,594.05,3.446]
[1744511109606,0.29286766,594.7,594.05,3.446]
[1744511109607,0.30928398,594.68,594.05,3.446]
[1744511109904,0.30928398,594.67,594.05,3.446]
[1744511110109,0.30928398,594.69,594.05,3.446]
[1744511110803,0.30928398,595.16,594.05,3.446]
[1744511111007,0.30928398,594.68,594.05,3.446]
[1744511111207,0.30928398,594.67,594.05,3.446]
[1744511111510,0.30928398,594.66,594.05,3.446]
[1744511111810,0.30928219,594.65,594.05,3.446]
[1744511112113,0.30928219,594.64,594.05,3.446]
[1744511112410,0.30928219,594.63,594.05,3.446]
[1744511112609,0.30928219,594.68,594.05,3.446]
[1744511112809,0.29280606,594.69,594.05,3.446]
[1744511112810,0.30928219,594.67,594.05,3.446]
[1744511113005,0.30928219,594.68,594.05,3.446]
[1744511113210,0.29280606,594.69,594.05,3.446]
[1744511113410,0.30927554,594.68,594.05,3.446]
[1744511113906,0.30927554,594.67,594.05,3.446]
[1744511114107,0.30927554,595.13,594.05,3.446]
[1744511114307,0.30927554,595.12,594.05,3.446]
[1744511114509,0.30927554,595.11,594.05,3.446]
[1744511114707,0.64535351,595.1,594.05,3.446]
[1744511114913,0.33608361,595.09,594.05,3.446]
[1744511115105,0.3092731,595.08,594.05,3.446]
[1744511115310,0.64536801,595.07,594.05,3.446]
[1744511115609,0.64537366,595.06,594.05,3.446]
[1744511115810,0.6453793,595.05,594.05,3.446]
[1744511116011,0.64538495,595.04,594.05,3.446]
[1744511116210,0.6453906,595.03,594.05,3.446]
[1744511116409,0.3092731,595.02,594.05,3.446]
[1744511116610,0.3092744,595.01,594.05,3.446]
[1744511116813,0.3092744,595.02,594.05,3.446]
[1744511117211,0.3361288,595.01,594.05,3.446]
[1744511117415,0.3092744,595.0,594.05,3.446]
[1744511117615,0.3361401,594.99,594.05,3.446]
[1744511117814,0.3092744,594.98,594.05,3.446]
[1744511118016,0.3361514,594.97,594.05,3.446]
[1744511118315,0.3092744,594.96,594.05,3.446]
[1744511119815,0.29282454,594.95,594.05,3.446]
[1744511120017,0.3092744,594.94,594.05,3.446]
[1744511121420,0.29282454,594.95,594.05,3.446]
[1744511121617,0.30926697,594.94,594.05,3.446]
[1744511125421,0.64543532,594.94,594.05,3.446]
[1744511125721,0.64544097,594.93,594.05,3.446]
[1744511125920,0.64544662,594.92,594.05,3.446]
[1744511126116,0.64545227,594.91,594.05,3.446]
[1744511126322,0.64545792,594.9,594.05,3.446]
[1744511126523,0.64546357,594.89,594.05,3.446]
[1744511126721,0.64546922,594.88,594.05,3.446]
[1744511126923,0.64547488,594.87,594.05,3.446]
[1744511127121,0.64548053,594.86,594.05,3.446]
[1744511127320,0.29289108,594.88,594.05,3.446]
[1744511127321,0.64548618,594.85,594.05,3.446]
[1744511127524,0.64549183,594.84,594.05,3.446]
[1744511127720,0.64549748,594.83,594.05,3.446]
[1744511127918,0.64550314,594.82,594.05,3.446]
[1744511128119,0.64550879,594.81,594.05,3.446]
[1744511128317,0.64551444,594.8,594.05,3.446]
[1744511128521,0.6455201,594.79,594.05,3.446]
[1744511128718,0.30926697,594.78,594.05,3.446]
[1744511129924,0.29289108,594.77,594.05,3.446]
[1744511130225,0.30926697,594.76,594.05,3.446]
[1744511131728,0.30926697,594.78,594.05,3.446]
[1744511131928,0.29292559,594.75,594.05,3.446]
[1744511132127,0.30926697,594.74,594.05,3.446]
[1744511132329,0.33628705,594.73,594.05,3.446]
[1744511132524,0.30926697,594.72,594.05,3.446]
[1744511132824,0.33629836,594.71,594.05,3.446]
[1744511133029,0.30943428,594.7,594.05,3.446]
[1744511133629,0.33630967,594.69,594.05,3.446]
[1744511133829,0.30943428,594.68,594.05,3.446]
[1744511134729,0.6457496,594.68,594.05,3.446]
[1744511135031,0.60236481,594.67,594.05,3.446]
[1744511135232,0.30943428,594.66,594.05,3.446]
[1744511137838,0.30943428,594.67,594.05,3.446]
[1744511138138,0.30943428,594.66,594.05,3.446]
[1744511138339,0.30943428,594.67,594.05,3.446]
[1744511138634,0.30943428,594.66,594.05,3.446]
[1744511138838,0.30943428,594.67,594.05,3.446]
[1744511139038,0.33631532,594.68,594.05,3.446]
[1744511139039,0.60236357,594.66,594.05,3.446]
[1744511139335,0.30943428,594.65,594.05,3.446]
[1744511140840,0.30943428,594.67,594.05,3.446]
[1744511141139,0.64576092,594.66,594.05,3.446]
[1744511141340,0.30943428,594.65,594.05,3.446]
[1744511141541,0.30943428,594.64,594.05,3.446]
[1744511141841,0.30943428,594.63,594.05,3.446]
[1744511142144,0.30943428,594.62,594.05,3.446]
[1744511142342,0.30943428,594.61,594.05,3.446]
[1744511142535,0.30943428,594.6,594.05,3.446]
[1744511142738,0.29293916,594.63,594.05,3.446]
[1744511142936,0.30945701,594.62,594.05,3.446]
[1744511143141,0.30945701,594.61,594.05,3.446]
[1744511143345,0.30945701,594.6,594.05,3.446]
[1744511143642,0.30945701,594.59,594.05,3.446]
[1744511143839,0.30945701,594.65,594.05,3.446]
[1744511144043,0.30945701,594.64,594.05,3.446]
[1744511144244,0.30945701,594.63,594.05,3.446]
[1744511144439,0.33632664,594.66,594.05,3.446]
[1744511144643,0.30945562,594.65,594.05,3.446]
[1744511144839,0.30945562,594.64,594.05,3.446]
[1744511145143,0.30945562,594.63,594.05,3.446]
[1744511145336,0.30945562,594.64,594.05,3.446]
[1744511146942,0.30945562,594.65,594.05,3.446]
[1744511147646,0.33632664,594.66,594.05,3.446]
[1744511147847,0.30945164,594.65,594.05,3.446]
[1744511148047,0.29293916,594.64,594.05,3.446]
[1744511148449,0.30945138,594.63,594.05,3.446]
[1744511149248,0.29293916,594.64,594.05,3.446]
[1744511149446,0.30946448,594.63,594.05,3.446]
[1744511149949,0.30946448,594.65,594.05,3.446]
[1744511150745,0.30946448,594.64,594.05,3.446]
[1744511150948,0.29293916,594.64,594.05,3.446]
[1744511151147,0.30945701,594.63,594.05,3.446]
[1744511151346,0.30945701,594.62,594.05,3.446]
[1744511151550,0.30945701,594.61,594.05,3.446]
[1744511151746,0.29293916,594.64,594.05,3.446]
[1744511151747,0.30945701,594.63,594.05,3.446]
[1744511151949,0.30945701,594.62,594.05,3.446]
[1744511152251,0.30945701,594.61,594.05,3.446]
[1744511152451,0.29293916,594.64,594.05,3.446]
[1744511152651,0.30946001,594.63,594.05,3.446]
[1744511152852,0.30946001,594.62,594.05,3.446]
[1744511153152,0.30946001,594.61,594.05,3.446]
[1744511153346,0.30946001,594.65,594.05,3.446]
[1744511153552,0.30946001,594.64,594.05,3.446]
[1744511153752,0.30946001,594.63,594.05,3.446]
[1744511153953,0.30946001,594.62,594.05,3.446]
[1744511154153,0.29293916,594.64,594.05,3.446]
[1744511154353,0.30945894,594.63,594.05,3.446]
[1744511154555,0.30945894,594.62,594.05,3.446]
[1744511154754,0.30945894,594.61,594.05,3.446]
[1744511155155,0.30945894,594.6,594.05,3.446]
[1744511155355,0.30945894,594.63,594.05,3.446]
[1744511155559,0.30945894,594.62,594.05,3.446]
[1744511155759,0.30945894,594.61,594.05,3.446]
[1744511155960,0.30945894,594.6,594.05,3.446]
[1744511156160,0.30945894,594.63,594.05,3.446]
[1744511156361,0.30945894,594.62,594.05,3.446]
[1744511156562,0.30945894,594.61,594.05,3.446]
[1744511156762,0.30945894,594.63,594.05,3.446]
[1744511157062,0.30945894,594.62,594.05,3.446]
[1744511157259,0.30945894,594.61,594.05,3.446]
[1744511157460,0.30945081,594.6,594.05,3.446]
[1744511157659,0.30945081,594.63,594.05,3.446]
[1744511157863,0.30945081,594.62,594.05,3.446]
[1744511158162,0.30945081,594.61,594.05,3.446]
[1744511158361,0.30945081,594.6,594.05,3.446]
[1744511158561,0.30945081,594.59,594.05,3.446]
[1744511158861,0.30945081,594.58,594.05,3.446]
[1744511159062,0.30945081,594.65,594.05,3.446]
[1744511159466,0.30945081,594.64,594.05,3.446]
[1744511159762,0.30945081,594.63,594.05,3.446]
[1744511159962,0.30945081,594.62,594.05,3.446]
[1744511160159,0.29298602,594.63,594.05,3.446]
[1744511160364,0.30945081,594.62,594.05,3.446]
[1744511160663,0.309503,594.61,594.05,3.446]
[1744511160857,0.309503,594.62,594.05,3.446]
[1744511161662,0.33635492,594.61,594.05,3.446]
[1744511161862,0.309503,594.6,594.05,3.446]
[1744511162657,0.33636623,594.59,594.05,3.446]
[1744511162861,0.309503,594.58,594.05,3.446]
[1744511163566,0.33637755,594.57,594.05,3.446]
[1744511163761,0.309503,594.56,594.05,3.446]
[1744511163957,0.6458862,594.56,594.05,3.446]
[1744511164165,0.309503,594.55,594.05,3.446]
[1744511164865,0.3363832,594.56,594.05,3.446]
[1744511165067,0.30950088,594.54,594.05,3.446]
[1744511165270,0.30950088,594.53,594.05,3.446]
[1744511165469,0.30950088,594.55,594.05,3.446]
[1744511165969,0.29297615,594.54,594.05,3.446]
[1744511166170,0.30950088,594.53,594.05,3.446]
[1744511167771,0.30950088,594.52,594.05,3.446]
[1744511168071,0.30950088,594.51,594.05,3.446]
[1744511168270,0.33641715,594.5,594.05,3.446]
[1744511168469,0.30950088,594.49,594.05,3.446]
[1744511168669,0.33642847,594.48,594.05,3.446]
[1744511168870,0.30950088,594.47,594.05,3.446]
[1744511169170,0.33643979,594.46,594.05,3.446]
[1744511169369,0.30950088,594.45,594.05,3.446]
[1744511170370,0.64594633,594.45,594.05,3.446]
[1744511170565,0.30950088,594.44,594.05,3.446]
[1744511174874,0.29299218,594.43,594.05,3.446]
[1744511175074,0.30950088,594.42,594.05,3.446]
[1744511175274,0.30950088,594.42,593.19,0.29299218]
[1744511175469,0.30950088,594.42,593.2,0.33715441]
[1744511176774,0.30950088,594.44,593.2,0.33715441]
[1744511177075,0.29310076,594.41,593.2,0.33715441]
[1744511177374,0.30950088,594.4,593.2,0.33715441]
[1744511177570,0.30950088,594.4,593.21,0.763]